lending/lending_fUSD_20260102
["ID","MTS","AMOUNT","RATE_DAILY","PERIOD"]
[400329766,1767379840957,-151.0,0.0002524,2]
[400329767,1767379840966,-151.0,0.0002524,2]
[400329768,1767379840976,-151.0,0.0002524,2]
[400329769,1767379840985,-151.0,0.0002524,2]
[400329770,1767379840994,-151.0,0.0002524,2]
[400329771,1767379841004,-151.0,0.0002524,2]
[400329772,1767379841013,-500.0,0.00025254,2]
[400329773,1767379841025,-660.0,0.00025254,2]
[400329774,1767379841037,-500.0,0.00025254,2]
[400329775,1767379841046,-500.0,0.00025254,2]
[400329776,1767379841056,-500.0,0.00025254,2]
[400329777,1767379841066,-500.0,0.00025254,2]
[400329778,1767379841077,-500.0,0.00025254,2]
[400329779,1767379841087,-500.0,0.00025254,2]
[400329780,1767379841097,-605.0,0.00025254,2]
[400329781,1767379841107,-500.0,0.00025254,2]
[400329782,1767379841117,-203.93761826,0.00025254,2]
[400329783,1767379841127,-500.0,0.00025254,2]
[400329784,1767379841136,-1109.17083251,0.00025254,10]
[400329785,1767379841146,-500.0,0.00025254,2]
[400329786,1767379841155,-500.0,0.00025254,2]
[400329787,1767379841164,-353.55847487,0.00025254,2]
[400329788,1767379841174,-1603.12,0.00025254,2]
[400329789,1767379841184,-1101.5,0.00025302,2]
[400329790,1767379841194,-171.79,0.00025312,2]
[400329791,1767379841204,-500.0,0.00025391,2]
[400329792,1767379841215,-660.0,0.00025391,2]
[400329793,1767379841225,-500.0,0.00025391,2]
[400329794,1767379841235,-500.0,0.00025391,2]
[400329795,1767379841246,-500.0,0.00025391,2]
[400329796,1767379841257,-500.0,0.00025391,2]
[400329797,1767379841267,-500.0,0.00025391,2]
[400329798,1767379841284,-500.0,0.00025391,2]
[400329799,1767379841294,-605.0,0.00025391,2]
[400329800,1767379841304,-500.0,0.00025391,2]
[400329801,1767379841314,-500.0,0.00025391,2]
[400329802,1767379841323,-500.0,0.00025528,2]
[400329803,1767379841333,-660.0,0.00025528,2]
[400329804,1767379841343,-500.0,0.00025528,2]
[400329805,1767379841353,-500.0,0.00025528,2]
[400329806,1767379841364,-383.60762801,0.00025528,2]
[400329807,1767379841374,-500.0,0.00025528,2]
[400329808,1767379841384,-500.0,0.00025528,2]
[400329809,1767379841394,-605.0,0.00025528,2]
[400329810,1767379841404,-500.0,0.00025528,2]
[400329811,1767379841414,-500.0,0.00025528,2]
[400329812,1767379841423,-500.0,0.00025528,2]
[400329813,1767379841432,-1603.12,0.00025528,2]
[400329814,1767379841442,-558.74946798,0.00025657,2]
[400329815,1767379841451,-500.0,0.00025665,2]
[400329816,1767379841459,-660.0,0.00025665,2]
[400329817,1767379841469,-500.0,0.00025665,2]
[400329818,1767379841478,-500.0,0.00025665,2]
[400329819,1767379841488,-300.0,0.00025665,2]
[400329820,1767379841497,-500.0,0.00025665,2]
[400329821,1767379841506,-605.0,0.00025665,2]
[400329822,1767379841516,-500.0,0.00025665,2]
[400329823,1767379841533,-500.0,0.00025665,2]
[400329824,1767379841542,-500.0,0.00025665,2]
[400329825,1767379841551,-192.84,0.00025673,2]
[400329826,1767379841561,-420.0,0.00025702,2]
[400329827,1767379841570,-442.74689201,0.00025788,2]
[400329828,1767379841580,-500.0,0.00025802,2]
[400329829,1767379841590,-660.0,0.00025802,2]
[400329830,1767379841599,-500.0,0.00025802,2]
[400329831,1767379841608,-500.0,0.00025802,2]
[400329832,1767379841617,-349.32717415,0.00025802,2]
[400329833,1767379841627,-605.0,0.00025802,2]
[400329834,1767379841636,-500.0,0.00025802,2]
[400329835,1767379841646,-500.0,0.00025802,2]
[400329836,1767379841656,-500.0,0.00025802,2]
[400329837,1767379841667,-1603.12,0.00025802,2]
[400329838,1767379841677,-1680.0,0.0002582,2]
[400329839,1767379841686,-500.0,0.00025939,2]
[400329840,1767379841695,-660.0,0.00025939,2]
[400329841,1767379841705,-500.0,0.00025939,2]
[400329842,1767379841714,-500.0,0.00025939,2]
[400329843,1767379841724,-605.0,0.00025939,2]
[400329844,1767379841733,-500.0,0.00025939,2]
[400329845,1767379841743,-500.0,0.00025939,2]
[400329846,1767379841752,-500.0,0.00025939,2]
[400329847,1767379841762,-7226.3,0.00025953,2]
[400329848,1767379841772,-500.0,0.00026076,2]
[400329849,1767379841783,-660.0,0.00026076,2]
[400329850,1767379841793,-500.0,0.00026076,2]
[400329851,1767379841803,-500.0,0.00026076,2]
[400329852,1767379841812,-605.0,0.00026076,2]
[400329853,1767379841822,-500.0,0.00026076,2]
[400329854,1767379841833,-500.0,0.00026076,2]
[400329855,1767379841842,-500.0,0.00026076,2]
[400329856,1767379841851,-1603.12,0.00026076,2]
[400329857,1767379841861,-500.0,0.00026213,2]
[400329858,1767379841871,-660.0,0.00026213,2]
[400329859,1767379841880,-500.0,0.00026213,2]
[400329860,1767379841890,-295.1656086,0.00026213,2]
[400329861,1767379841899,-605.0,0.00026213,2]
[400329862,1767379841909,-500.0,0.00026213,2]
[400329863,1767379841918,-308.3819682,0.00026213,2]
[400329864,1767379841928,-215.65062607,0.00026213,2]
[400329865,1767379841937,-660.0,0.0002635,2]
[400329866,1767379841948,-480.0,0.0002635,2]
[400329867,1767379841957,-500.0,0.0002635,2]
[400329868,1767379841966,-605.0,0.0002635,2]
[400329869,1767379841976,-500.0,0.0002635,2]
[400329870,1767379841985,-1603.12,0.0002635,2]
[400329871,1767379841995,-660.0,0.00026487,2]
[400329872,1767379842005,-500.0,0.00026487,2]
[400329873,1767379842014,-500.0,0.00026487,2]
[400329874,1767379842029,-605.0,0.00026487,2]
[400329875,1767379842039,-660.0,0.00026624,2]
[400329876,1767379842049,-500.0,0.00026624,2]
[400329877,1767379842058,-500.0,0.00026624,2]
[400329878,1767379842068,-605.0,0.00026624,2]
[400329879,1767379842077,-1603.12,0.00026624,2]
[400329880,1767379842087,-150.0,0.00026714,2]
[400329881,1767379842097,-150.73404556,0.00026714,2]
[400329882,1767379842108,-500.0,0.00026714,2]
[400329883,1767379842117,-150.0,0.00026714,2]
[400329884,1767379842128,-500.0,0.00026714,2]
[400329885,1767379842137,-150.0,0.00026714,2]
[400329886,1767379842147,-500.0,0.00026714,2]
[400329887,1767379842156,-500.0,0.00026714,2]
[400329888,1767379842166,-150.0,0.00026714,2]
[400329889,1767379842175,-150.0,0.00026714,2]
[400329890,1767379842184,-150.0,0.00026714,2]
[400329891,1767379842231,-150.0,0.00026714,2]
[400329892,1767379842241,-660.0,0.00026761,2]
[400329893,1767379842251,-500.0,0.00026761,2]
[400329894,1767379842260,-385.10310192,0.00026761,2]
[400329895,1767379842270,-605.0,0.00026761,2]
[400329896,1767379842281,-205.52676067,0.000268,2]
[400329897,1767379842291,-500.0,0.00026851,2]
[400329898,1767379842300,-150.0,0.00026851,2]
[400329899,1767379842310,-150.0,0.00026851,2]
[400329900,1767379842320,-500.0,0.00026851,2]
[400329901,1767379842329,-500.0,0.00026851,2]
[400329902,1767379842338,-500.0,0.00026851,2]
[400329903,1767379842347,-150.0,0.00026851,2]
[400329904,1767379842357,-150.0,0.00026851,2]
[400329905,1767379842366,-173.82331506,0.00026851,2]
[400329906,1767379842375,-150.0,0.00026851,2]
[400329907,1767379842385,-660.0,0.00026898,2]
[400329908,1767379842394,-500.0,0.00026898,2]
[400329909,1767379842403,-605.0,0.00026898,2]
[400329910,1767379842412,-1603.12,0.00026898,2]
[400329911,1767379842422,-1680.0,0.00026919,2]
[400329912,1767379842432,-209.80705324,0.00026988,2]
[400329913,1767379842442,-500.0,0.00026988,2]
[400329914,1767379842452,-150.0,0.00026988,2]
[400329915,1767379842461,-500.0,0.00026988,2]
[400329916,1767379842471,-500.0,0.00026988,2]
[400329917,1767379842481,-452.82209839,0.00026988,2]
[400329918,1767379842490,-150.0,0.00026988,2]
[400329919,1767379842499,-150.33162922,0.00026988,2]
[400329920,1767379842508,-150.53756938,0.00026988,2]
[400329921,1767379842517,-500.0,0.00027,2]
[400329922,1767379842528,-660.0,0.00027035,2]
[400329923,1767379842537,-500.0,0.00027035,2]
[400329924,1767379842546,-605.0,0.00027035,2]
[400329925,1767379842557,-500.0,0.00027047,2]
[400329926,1767379842566,-414.08933578,0.00027047,2]
[400329927,1767379842575,-500.0,0.00027047,2]
[400329928,1767379842584,-1000.0,0.00027047,2]
[400329929,1767379842593,-1000.0,0.00027047,2]
[400329930,1767379842602,-1000.0,0.00027047,2]
[400329931,1767379842612,-1000.0,0.00027047,2]
[400329932,1767379842623,-1000.0,0.00027047,2]
[400329933,1767379842632,-500.0,0.00027047,2]
[400329934,1767379842642,-500.0,0.00027047,2]
[400329935,1767379842651,-500.0,0.00027047,2]
[400329936,1767379842661,-519.48987423,0.00027047,2]
[400329937,1767379842672,-500.0,0.00027047,2]
[400329938,1767379842682,-500.0,0.00027047,2]
[400329939,1767379842692,-500.0,0.00027057,2]
[400329940,1767379842702,-500.0,0.00027057,2]
[400329941,1767379842711,-500.0,0.00027057,2]
[400329942,1767379842720,-500.0,0.00027057,2]
[400329943,1767379842729,-500.0,0.00027057,2]
[400329944,1767379842738,-500.0,0.00027057,2]
[400329945,1767379842746,-500.0,0.00027057,2]
[400329946,1767379842756,-500.0,0.00027057,2]
[400329947,1767379842765,-500.0,0.00027057,2]
[400329948,1767379842774,-500.0,0.00027057,2]
[400329949,1767379842783,-500.0,0.00027057,2]
[400329950,1767379842793,-500.0,0.00027057,2]
[400329951,1767379842802,-500.0,0.00027057,2]
[400329952,1767379842812,-500.0,0.00027057,2]
[400329953,1767379842821,-500.0,0.00027057,2]
[400329954,1767379842830,-500.0,0.00027057,2]
[400329955,1767379842840,-500.0,0.00027057,2]
[400329956,1767379842849,-500.0,0.00027057,2]
[400329957,1767379842858,-500.0,0.00027057,2]
[400329958,1767379842868,-500.0,0.00027057,2]
[400329959,1767379842877,-500.0,0.00027057,2]
[400329960,1767379842887,-500.0,0.00027057,2]
[400329961,1767379842896,-156.11255964,0.00027057,2]
[400329962,1767379842905,-500.0,0.00027057,2]
[400329963,1767379842915,-296.93519622,0.00027057,2]
[400329964,1767379842924,-500.0,0.00027057,2]
[400329965,1767379842933,-500.0,0.00027057,2]
[400329966,1767379842942,-500.0,0.00027057,2]
[400329967,1767379842951,-500.0,0.00027057,2]
[400329968,1767379842961,-32083.1171726,0.00027107,2]
[400329969,1767379842970,-500.0,0.00027125,2]
[400329970,1767379842980,-235.01856769,0.00027125,2]
[400329971,1767379842989,-500.0,0.00027125,2]
[400329972,1767379843000,-450.0,0.00027125,2]
[400329974,1767379843010,-151.42325421,0.00027125,2]
[400329975,1767379843020,-660.0,0.00027172,2]
[400329976,1767379843035,-293.27926274,0.00027172,2]
[400329978,1767379843045,-1603.12,0.00027172,2]
[400329980,1767379843055,-250.0,0.0002722,2]
[400329982,1767379843065,-500.0,0.00027262,2]
[400329983,1767379843074,-500.0,0.00027262,2]
[400329985,1767379843084,-660.0,0.00027309,2]
[400329987,1767379843094,-256.26219828,0.00027397,5]
[400329989,1767379843105,-500.0,0.00027397,20]
[400329991,1767379843115,-300.0,0.00027397,2]
[400329994,1767379843127,-500.0,0.00027399,2]
[400329996,1767379843137,-428.39452872,0.00027399,2]
[400329998,1767379843147,-660.0,0.00027446,2]
[400330000,1767379843157,-1603.12,0.00027446,14]
[400330002,1767379843167,-638.11163793,0.00027536,2]
[400330004,1767379843177,-660.0,0.00027583,2]
[400330005,1767379843187,-660.0,0.0002772,2]
[400330006,1767379843198,-1603.12,0.0002772,14]
[400330007,1767379843208,-660.0,0.00027857,2]
[400330008,1767379843217,-587.0,0.00027881,2]
[400330009,1767379843226,-665.15585513,0.00027994,2]
[400330010,1767379843236,-1603.12,0.00027994,14]
[400330011,1767379843245,-2351.0,0.00028138,2]
[400330012,1767379843255,-1603.12,0.00028268,14]
[400330013,1767379843264,-1603.12,0.00028542,14]
[400330014,1767379843276,-151.86245974,0.00028768,2]
[400330015,1767379843286,-1603.12,0.00028816,14]
[400330016,1767379843296,-550.0,0.00029,2]
[400330017,1767379843306,-32083.1171726,0.00029074,2]
[400330018,1767379843316,-1603.2,0.0002909,14]
[400330019,1767379843325,-250.0,0.00029128,2]
[400330020,1767379843334,-2351.0,0.00029167,2]
[400330021,1767379843344,-1007.30496763,0.00029526,5]
[400330022,1767379843353,-1097.42030091,0.00029526,5]
[400330023,1767379843362,-1063.77650611,0.00029526,5]
[400330024,1767379843371,-1015.91259077,0.00029526,5]
[400330025,1767379843381,-1022.67445618,0.00029526,5]
[400330026,1767379843390,-1085.32044402,0.00029526,5]
[400330027,1767379843399,-1078.94477185,0.00029526,5]
[400330028,1767379843409,-1043.56294301,0.00029526,5]
[400330029,1767379843420,-164.59,0.0002998,2]
[400330030,1767379843429,-500.0,0.00030129,2]
[400330031,1767379843438,-500.0,0.00030129,45]
[400330032,1767379843448,-500.0,0.00030129,30]
[400330033,1767379843457,-823.0,0.00030245,2]
[400330034,1767379843468,-3292.0,0.00030664,2]
[400330035,1767379843478,-796.2658854,0.00030835,2]
[400330036,1767379843488,-768.10185389,0.0003095,3]
[400330037,1767379843497,-600.0,0.00031,2]
[400330038,1767379843507,-32083.1171726,0.00031041,2]
[400330039,1767379843516,-3292.0,0.00031602,3]
[400330040,1767379843528,-613.0,0.00032482,2]
[400330041,1767379843537,-1403.0,0.00032482,2]
[400330042,1767379843547,-465.163,0.00032482,2]
[400330043,1767379843557,-3462.0,0.00032482,2]
[400330044,1767379843567,-161.399,0.00032482,2]
[400330045,1767379843576,-432.0,0.00032482,2]
[400330046,1767379843585,-1264.0,0.00032482,2]
[400330047,1767379843595,-2433.0,0.00032482,2]
[400330048,1767379843604,-6542.0,0.00032482,2]
[400330049,1767379843613,-3575.0,0.00032482,2]
[400330050,1767379843623,-1152.0,0.0003281,3]
[400330051,1767379843632,-343.29,0.00032877,2]
[400330052,1767379843642,-4269.59,0.0003297,2]
[400330053,1767379843651,-650.0,0.00033,2]
[400330054,1767379843660,-32083.1171726,0.00033008,2]
[400330055,1767379843670,-4907.57,0.00033321,2]
[400330056,1767379843680,-4609.0,0.00033417,3]
[400330057,1767379843690,-150.0,0.00033684,7]
[400330058,1767379843699,-150.0,0.00033684,7]
[400330059,1767379843709,-150.0,0.00033684,7]
[400330060,1767379843721,-150.0,0.00033684,7]
[400330061,1767379843731,-150.0,0.00033684,7]
[400330062,1767379843741,-150.0,0.00033684,7]
[400330063,1767379843751,-171.79,0.00033699,2]
[400330064,1767379843760,-200.0,0.00033737,2]
[400330065,1767379843771,-207.4,0.00033737,2]
[400330066,1767379843782,-215.0738,0.00033737,2]
[400330067,1767379843791,-223.0315306,0.00033737,2]
[400330068,1767379843801,-231.28369723,0.00033737,2]
[400330069,1767379843811,-239.84119403,0.00033737,2]
[400330070,1767379843821,-248.71531821,0.00033737,2]
[400330071,1767379843830,-257.91778498,0.00033737,2]
[400330072,1767379843839,-267.46074303,0.00033737,2]
[400330073,1767379843849,-4785.66,0.00033992,2]
[400330074,1767379843858,-3600.0,0.00034241,3]
[400330075,1767379843867,-224.28,0.000344,14]
[400330076,1767379843878,-32083.1171726,0.00034975,2]
[400330077,1767379843887,-150.96828082,0.00035,2]
[400330078,1767379843896,-700.0,0.00035,2]
[400330079,1767379843906,-171.77782192,0.00035031,2]
[400330080,1767379843916,-2000.0,0.000351,2]
[400330081,1767379843925,-277.35679052,0.00035106,2]
[400330082,1767379843935,-1516.759,0.00035213,41]
[400330083,1767379843944,-165.8,0.00035213,41]
[400330084,1767379843953,-2433.0,0.00035482,2]
[400330085,1767379843963,-1097.0,0.00035591,3]
[400330086,1767379843973,-384.39329741,0.00035616,31]
[400330087,1767379843983,-238.42,0.00036274,2]
[400330088,1767379843993,-2876.0,0.00036417,3]
[400330089,1767379844003,-287.61899177,0.00036475,2]
[400330090,1767379844012,-768.10185387,0.0003689,11]
[400330091,1767379844022,-276.495859,0.0003693,2]
[400330092,1767379844036,-32083.1171726,0.00036942,2]
[400330093,1767379844046,-750.0,0.00037,2]
[400330094,1767379844055,-298.26089446,0.00037844,2]
[400330095,1767379844066,-171.79,0.00038314,2]
[400330096,1767379844075,-150.0,0.00038466,7]
[400330097,1767379844085,-150.0,0.00038466,7]
[400330098,1767379844095,-150.0,0.00038466,7]
[400330099,1767379844104,-150.0,0.00038466,7]
[400330100,1767379844117,-150.0,0.00038466,7]
[400330101,1767379844126,-150.0,0.00038466,7]
[400330102,1767379844136,-150.0,0.00038466,7]
[400330103,1767379844145,-150.44068196,0.00038466,7]
[400330104,1767379844154,-150.0,0.00038466,7]
[400330105,1767379844163,-150.55633321,0.00038466,7]
[400330106,1767379844172,-150.00000001,0.00038466,7]
[400330107,1767379844181,-150.0,0.00038466,7]
[400330108,1767379844191,-150.0,0.00038466,7]
[400330109,1767379844201,-2433.0,0.00038482,2]
[400330110,1767379844210,-300.0,0.00038636,2]
[400330111,1767379844219,-300.0,0.00038636,2]
[400330112,1767379844229,-303.85501722,0.00038636,2]
[400330113,1767379844238,-300.0,0.00038636,2]
[400330114,1767379844247,-300.0,0.00038636,2]
[400330115,1767379844257,-595.88867019,0.00038636,2]
[400330116,1767379844267,-364.48459935,0.00038636,2]
[400330117,1767379844277,-300.0,0.00038636,2]
[400330118,1767379844286,-300.0,0.00038636,2]
[400330119,1767379844296,-300.0,0.00038636,2]
[400330120,1767379844305,-300.0,0.00038636,2]
[400330121,1767379844315,-300.0,0.00038636,2]
[400330122,1767379844324,-300.0,0.00038636,2]
[400330123,1767379844334,-303.47175408,0.00038636,2]
[400330124,1767379844343,-300.0,0.00038636,2]
[400330125,1767379844353,-578.04560059,0.00038636,2]
[400330126,1767379844362,-300.0,0.00038636,2]
[400330127,1767379844371,-300.0,0.00038636,2]
[400330128,1767379844380,-300.0,0.00038636,2]
[400330129,1767379844390,-300.0,0.00038636,2]
[400330130,1767379844399,-300.0,0.00038636,2]
[400330131,1767379844408,-300.0,0.00038636,2]
[400330132,1767379844418,-615.94778257,0.00038636,2]
[400330133,1767379844427,-304.64549813,0.00038636,2]
[400330134,1767379844437,-300.0,0.00038636,2]
[400330135,1767379844446,-300.0,0.00038636,2]
[400330136,1767379844455,-300.0,0.00038636,2]
[400330137,1767379844464,-300.0,0.00038636,2]
[400330138,1767379844476,-300.0,0.00038636,2]
[400330139,1767379844485,-303.85501722,0.00038636,2]
[400330140,1767379844494,-300.0,0.00038636,2]
[400330141,1767379844504,-300.0,0.00038636,2]
[400330142,1767379844513,-595.88867019,0.00038636,2]
[400330143,1767379844522,-364.48459935,0.00038636,2]
[400330144,1767379844533,-300.0,0.00038636,2]
[400330145,1767379844542,-300.0,0.00038636,2]
[400330146,1767379844551,-300.0,0.00038636,2]
[400330147,1767379844561,-300.0,0.00038636,2]
[400330148,1767379844570,-300.0,0.00038636,2]
[400330149,1767379844579,-300.0,0.00038636,2]
[400330150,1767379844588,-303.47175408,0.00038636,2]
[400330151,1767379844598,-300.0,0.00038636,2]
[400330152,1767379844608,-578.04560059,0.00038636,2]
[400330153,1767379844617,-300.0,0.00038636,2]
[400330154,1767379844626,-300.0,0.00038636,2]
[400330155,1767379844637,-300.0,0.00038636,2]
[400330156,1767379844647,-300.0,0.00038636,2]
[400330157,1767379844656,-300.0,0.00038636,2]
[400330158,1767379844666,-300.0,0.00038636,2]
[400330159,1767379844675,-615.94778257,0.00038636,2]
[400330160,1767379844685,-304.64549813,0.00038636,2]
[400330161,1767379844695,-300.0,0.00038636,2]
[400330162,1767379844704,-300.0,0.00038636,2]
[400330163,1767379844713,-300.0,0.00038636,2]
[400330164,1767379844723,-2000.0,0.000388,2]
[400330165,1767379844732,-304.53,0.000388,14]
[400330166,1767379844741,-32083.1171726,0.00038909,2]
[400330167,1767379844751,-150.9682808,0.00038922,2]
[400330168,1767379844760,-5530.0,0.00039,5]
[400330169,1767379844769,-309.29654756,0.00039213,2]
[400330170,1767379844780,-150.0,0.00039534,7]
[400330171,1767379844789,-150.0,0.0003989,7]
[400330172,1767379844799,-512.0,0.00039943,2]
[400330173,1767379844808,-502.00003,0.00039943,2]
[400330174,1767379844818,-1180.0,0.00040449,14]
[400330176,1767379844827,-151.0,0.00040497,14]
[400330177,1767379844836,-107226.23987977,0.000405,2]
[400330178,1767379844846,-320.74051982,0.00040582,2]
[400330179,1767379844854,-150.0,0.00040603,7]
[400330180,1767379844864,-150.0,0.00040603,7]
[400330181,1767379844873,-163.96514942,0.00040866,7]
[400330182,1767379844882,-32083.1171726,0.00040876,15]
[400330183,1767379844892,-999.0,0.00041095,120]
[400330184,1767379844901,-314.02192836,0.00041096,2]
[400330185,1767379844910,-640.65549569,0.00041096,111]
[400330186,1767379844920,-512.0,0.00041235,10]
[400330187,1767379844930,-1222.64,0.00041315,120]
[400330188,1767379844939,-150.0,0.00041315,30]
[400330189,1767379844949,-429.552,0.00041482,2]
[400330190,1767379844959,-800.0,0.00041524,13]
[400330191,1767379844968,-800.0,0.00041524,13]
[400330192,1767379844978,-800.0,0.00041524,13]
[400330193,1767379844987,-800.0,0.00041524,13]
[400330194,1767379844997,-800.0,0.00041524,13]
[400330195,1767379845006,-800.0,0.00041524,13]
[400330196,1767379845015,-800.0,0.00041524,13]
[400330197,1767379845025,-800.0,0.00041524,13]
[400330198,1767379845041,-800.0,0.00041524,13]
[400330199,1767379845051,-800.0,0.00041524,13]
[400330200,1767379845061,-800.0,0.00041524,13]
[400330201,1767379845071,-800.0,0.00041524,13]
[400330202,1767379845082,-800.0,0.00041524,13]
[400330203,1767379845091,-800.0,0.00041524,13]
[400330204,1767379845100,-800.0,0.00041524,13]
[400330205,1767379845111,-800.0,0.00041524,13]
[400330206,1767379845121,-800.0,0.00041524,13]
[400330207,1767379845131,-800.0,0.00041524,13]
[400330208,1767379845141,-800.0,0.00041524,13]
[400330209,1767379845150,-800.0,0.00041524,13]
[400330210,1767379845159,-510.0,0.00041524,13]
[400330211,1767379845168,-800.0,0.0004158,60]
[400330212,1767379845178,-500.0,0.0004158,60]
[400330213,1767379845188,-500.0,0.0004158,60]
[400330214,1767379845198,-857.72134561,0.00041638,7]
[400330215,1767379845207,-150.0,0.00041671,30]
[400330216,1767379845216,-399.83079592,0.00041845,2]
[400330217,1767379845226,-832.0,0.00041947,16]
[400330218,1767379845236,-332.60791905,0.00041951,2]
[400330219,1767379845246,-481.83,0.00041973,30]
[400330220,1767379845256,-660.52,0.00041973,30]
[400330221,1767379845266,-482.01,0.00041973,30]
[400330222,1767379845275,-660.52,0.00041973,30]
[400330223,1767379845286,-482.01,0.00041973,30]
[400330224,1767379845296,-652.13,0.00041973,30]
[400330225,1767379845305,-482.01,0.00041973,30]
[400330226,1767379845315,-481.39,0.00041973,30]
[400330227,1767379845325,-232.0,0.00042,2]
[400330228,1767379845335,-1000.0,0.00042,7]
[400330229,1767379845344,-500.0,0.00042081,120]
[400330230,1767379845353,-500.0,0.00042081,2]
[400330231,1767379845363,-500.0,0.00042081,120]
[400330232,1767379845373,-500.0,0.00042081,45]
[400330233,1767379845382,-500.0,0.00042081,30]
[400330234,1767379845391,-500.0,0.00042081,120]
[400330235,1767379845400,-1080.8101819,0.00042084,50]
[400330236,1767379845409,-1128.517468,0.00042084,50]
[400330237,1767379845419,-1067.10913059,0.00042084,50]
[400330238,1767379845429,-1077.33372869,0.00042084,50]
[400330239,1767379845438,-1105.59530655,0.00042084,50]
[400330240,1767379845448,-1144.32386589,0.00042084,50]
[400330242,1767379845457,-1054.76426135,0.00042084,50]
[400330243,1767379845467,-1001.99205175,0.00042084,50]
[400330244,1767379845476,-1080.93828058,0.00042084,50]
[400330245,1767379845485,-1069.19251461,0.00042084,50]
[400330246,1767379845494,-1114.00651804,0.00042084,50]
[400330247,1767379845504,-1110.38008168,0.00042084,50]
[400330248,1767379845513,-1084.5101453,0.00042084,50]
[400330249,1767379845523,-1122.17830317,0.00042084,50]
[400330250,1767379845534,-1013.63016817,0.00042084,50]
[400330252,1767379845543,-1124.50566569,0.00042084,50]
[400330254,1767379845552,-1060.89577748,0.00042084,50]
[400330255,1767379845562,-1107.35362813,0.00042084,50]
[400330256,1767379845571,-1130.17220289,0.00042084,50]
[400330257,1767379845580,-1099.09945793,0.00042084,50]
[400330258,1767379845589,-1149.06525359,0.00042084,50]
[400330259,1767379845599,-980.58936956,0.00042084,50]
[400330260,1767379845608,-150.0,0.0004211,30]
[400330261,1767379845618,-171.03,0.0004211,30]
[400330262,1767379845627,-178.8,0.0004211,30]
[400330263,1767379845637,-151.21,0.0004211,30]
[400330264,1767379845646,-171.08,0.0004211,30]
[400330265,1767379845656,-472.19,0.0004211,30]
[400330266,1767379845665,-178.8,0.0004211,30]
[400330267,1767379845674,-171.08,0.0004211,30]
[400330268,1767379845683,-465.87,0.0004211,30]
[400330269,1767379845692,-178.8,0.0004211,30]
[400330270,1767379845702,-171.08,0.0004211,30]
[400330271,1767379845711,-465.87,0.0004211,30]
[400330272,1767379845721,-178.8,0.0004211,30]
[400330273,1767379845730,-170.88,0.0004211,30]
[400330274,1767379845739,-178.8,0.0004211,30]
[400330275,1767379845748,-171.03,0.0004211,30]
[400330276,1767379845757,-156.7,0.0004211,30]
[400330277,1767379845767,-800.0,0.00042128,60]
[400330278,1767379845776,-500.0,0.00042128,60]
[400330279,1767379845785,-999.0,0.00042191,120]
[400330280,1767379845795,-150.0,0.00042339,60]
[400330281,1767379845804,-150.0,0.00042339,60]
[400330282,1767379845813,-500.0,0.00042339,60]
[400330283,1767379845822,-500.0,0.00042339,60]
[400330284,1767379845832,-150.05940282,0.00042339,60]